bitfinex-derivatives/quotes_SOLF0:USTF0_20241206
["timestamp","ask_amount","ask_price","bid_price","bid_amount"]
[1733477350104,2.1164,236.04,236.0,2.62]
[1733477350307,9.31626916,236.03,236.0,2.62]
[1733477350712,2.1166,236.02,236.0,2.62]
[1733477351211,9.31626916,236.03,236.0,2.62]
[1733477351706,11.43276916,236.03,236.0,2.62]
[1733477353303,9.31626916,236.03,236.0,2.62]
[1733477353710,11.43276916,236.03,236.0,2.62]
[1733477354009,9.31626916,236.06,236.0,2.62]
[1733477354210,9.31626916,236.09,236.0,2.62]
[1733477354412,9.31626916,236.09,236.06,2.1162]
[1733477354614,9.31626916,236.09,236.07,2.7]
[1733477355510,11.43226916,236.09,236.07,2.7]
[1733477356211,9.31626916,236.11,236.07,2.7]
[1733477358214,11.43226916,236.08,236.07,2.7]
[1733477358511,2.7,236.22,236.01,2.5242]
[1733477358716,9.31626916,236.05,236.02,2.7]
[1733477359018,9.31626916,236.05,236.01,2.5242]
[1733477359019,9.31626916,236.05,236.01,2.7]
[1733477359314,9.31626916,236.02,236.0,2.7]
[1733477359614,9.31626916,236.02,235.99,2.7]
[1733477360415,2.1168,236.0,235.99,2.7]
[1733477360915,9.31626916,236.02,235.99,2.7]
[1733477361411,12.01626916,236.16,235.99,2.7]
[1733477361412,9.31626916,236.09,235.99,2.7]
[1733477361616,2.1161,236.08,235.99,2.7]
[1733477362018,2.1161,236.08,236.03,2.1164]
[1733477362416,2.1162,236.07,236.03,2.1164]
[1733477363824,2.1162,236.06,236.02,2.1166]
[1733477365119,9.31626916,236.07,235.99,2.7]
[1733477365318,9.31626916,236.04,235.99,2.7]
[1733477365516,9.31626916,236.01,235.92,5.24958]
[1733477365911,9.31626916,236.01,235.93,2.7]
[1733477366111,4.2313,236.13,235.93,2.7]
[1733477366112,9.31626916,236.04,235.93,2.7]
[1733477366316,11.43276916,236.04,235.99,2.1168]
[1733477366517,11.43276916,236.04,236.0,2.7]
[1733477367419,9.31626916,236.04,236.0,2.7]
[1733477368018,2.1167,236.01,235.96,2.1171]
[1733477368816,2.1166,236.03,235.98,2.1169]
[1733477369118,9.31626916,236.04,235.95,2.7]
[1733477369521,9.31626916,236.01,235.95,2.7]
[1733477369922,2.1168,236.0,235.95,4.8171]
[1733477370523,2.1171,235.96,235.92,2.41538]
[1733477370924,2.1171,235.96,235.93,2.7]
[1733477371122,9.31626916,235.98,235.93,2.7]
[1733477371328,2.117,235.97,235.93,2.7]
[1733477372323,9.31626916,235.98,235.95,2.1172]
[1733477372619,9.31626916,235.96,235.92,0.29788]
[1733477372825,2.1174,235.93,235.92,0.29788]
[1733477374728,11.43366916,235.93,235.92,0.29788]
[1733477377328,18.63253832,235.93,235.76,2.7]
[1733477377634,9.31626916,235.83,235.76,2.7]
[1733477378130,11.43456916,235.83,235.77,2.1188]
[1733477378335,11.43456916,235.83,235.78,2.7]
[1733477378532,9.31626916,235.83,235.78,2.7]
[1733477378732,9.31626916,235.87,235.78,2.7]
[1733477379728,9.31626916,235.89,235.78,2.7]
[1733477381032,9.31626916,235.89,235.81,2.1184]
[1733477381627,9.31626916,235.86,235.81,2.1184]
[1733477381828,12.71,236.04,235.78,2.7]
[1733477382034,9.31626916,235.92,235.78,2.7]
[1733477382333,2.7,236.02,235.78,2.7]
[1733477382534,9.31626916,235.92,235.78,2.7]
[1733477382734,9.31626916,235.92,235.73,2.361]
[1733477382735,2.1185,235.81,235.73,2.361]
[1733477382939,9.31626916,235.85,235.75,2.1189]
[1733477383233,9.31626916,235.85,235.74,4.14055192]
[1733477383433,9.31626916,235.85,235.77,2.1187]
[1733477383633,2.4985,235.91,235.78,2.7]
[1733477383839,9.31626916,235.85,235.78,2.7]
[1733477384038,9.31626916,235.92,235.78,2.7]
[1733477384339,11.43416916,235.88,235.78,2.7]
[1733477384532,9.31626916,235.88,235.78,2.7]
[1733477384733,9.31626916,235.91,235.78,2.7]
[1733477384937,2.4985,235.99,235.79,9.31626916]
[1733477385137,9.31626916,235.94,235.79,9.31626916]
[1733477385337,9.31626916,235.94,235.8,2.2801]
[1733477385538,2.1174,235.93,235.87,2.1178]
[1733477385739,2.1174,235.93,235.88,2.7]
[1733477386739,2.1174,235.93,235.88,4.8178]
[1733477387637,4.2306,236.17,235.88,2.7]
[1733477387832,4.209,236.12,235.89,2.3446]
[1733477388037,2.1168,236.0,235.92,2.1174]
[1733477388341,9.31626916,235.99,235.89,2.3446]
[1733477388739,9.31626916,235.99,235.89,6.52318829]
[1733477389243,9.31626916,235.99,235.94,2.1173]
[1733477389443,9.31626916,235.99,235.95,2.7]
[1733477389739,2.117,235.98,235.95,2.7]
[1733477389946,9.31626916,235.99,235.95,2.7]
[1733477391145,11.43306916,235.99,235.95,2.7]
[1733477392439,2.1168,235.98,235.95,2.7]
[1733477392744,9.31626916,235.99,235.95,2.7]
[1733477393146,2.1169,235.97,235.95,2.7]
[1733477393347,4.209,236.12,235.95,2.7]
[1733477393550,9.31626916,236.02,235.95,4.817]
[1733477393745,9.31626916,236.02,235.95,2.7]
[1733477394347,2.1165,236.01,235.96,2.1169]
[1733477396052,2.1166,236.0,235.96,2.1169]
[1733477396244,9.31626916,236.02,235.95,2.7]
[1733477396454,2.1167,236.0,235.95,2.7]
[1733477396649,9.31626916,236.02,235.95,2.7]
[1733477396959,9.31626916,236.02,235.98,2.1167]
[1733477397158,9.31626916,236.02,235.95,2.7]
[1733477397360,9.31626916,236.02,235.98,2.1167]
[1733477397855,9.31626916,236.02,235.96,6.9914]
[1733477398056,9.31626916,236.02,235.96,4.8745]
[1733477398457,2.1166,236.0,235.96,4.8745]
[1733477399055,4.209,236.12,235.95,2.7]
[1733477399056,9.31626916,235.99,235.95,2.7]
[1733477399756,2.1169,235.97,235.95,2.7]
[1733477399954,9.31626916,236.04,235.95,2.7]
[1733477400156,9.31626916,236.01,235.95,2.7]
[1733477401258,9.31626916,236.01,235.95,4.817]
[1733477401654,6.909,236.12,235.95,2.7]
[1733477401855,2.1167,235.99,235.95,2.7]
[1733477402063,9.31626916,236.02,235.95,2.7]
[1733477402859,9.31626916,235.99,235.95,2.7]
[1733477403159,9.31626916,235.96,235.77,9.31626916]
[1733477403465,9.31626916,236.04,235.77,9.31626916]
[1733477403466,2.1174,235.92,235.86,2.1178]
[1733477403962,2.1174,235.92,235.85,0.15548]
[1733477404159,2.1174,235.92,235.87,2.1177]
[1733477404365,11.43346916,235.93,235.85,0.15548]
[1733477404563,11.43346916,235.93,235.86,2.7]
[1733477404759,9.31626916,235.93,235.86,2.7]
[1733477405462,2.1175,235.91,235.87,2.7]
[1733477405662,9.31626916,235.93,235.87,2.7]
[1733477406064,11.43346916,235.93,235.88,2.1177]
[1733477407664,9.31626916,235.93,235.88,2.1177]
[1733477407862,9.31626916,235.93,235.87,2.7]
[1733477408066,9.31626916,235.9,235.87,2.7]
[1733477408372,9.31626916,235.9,235.85,2.85548]
[1733477408568,2.1177,235.88,235.85,2.85548]
[1733477409270,2.1177,235.88,235.86,2.7]
[1733477409467,9.31626916,235.87,235.85,0.15548]
[1733477410067,9.31626916,235.87,235.8,2.7]
[1733477410265,2.1183,235.81,235.8,2.7]
[1733477410669,2.1183,235.81,235.72,7.1971]
[1733477410862,2.1185,235.79,235.73,2.7]
[1733477411068,2.1185,235.79,235.75,2.1188]
[1733477411266,2.1186,235.78,235.72,2.3523]
[1733477411565,9.31626916,235.8,235.73,2.7]
[1733477411969,2.1187,235.77,235.73,2.7]
[1733477412269,9.31626916,235.8,235.68,7.48437303]
[1733477412463,2.1192,235.72,235.68,7.48437303]
[1733477412663,9.31626916,235.74,235.68,7.48437303]
[1733477413264,9.31626916,235.8,235.68,7.48437303]
[1733477413265,9.31626916,235.69,235.68,7.48437303]
[1733477413866,9.31626916,235.69,235.68,7.45157303]
[1733477414068,9.31626916,235.69,235.49,2.64]
[1733477414274,2.1201,235.61,235.49,2.64]
[1733477414471,9.31626916,235.63,235.56,2.1205]
[1733477414775,9.31626916,235.66,235.57,2.64]
[1733477415472,2.64,235.74,235.57,2.64]
[1733477415671,35.14451585,235.78,235.57,2.64]
[1733477415672,9.31626916,235.73,235.57,2.64]
[1733477415873,2.1192,235.72,235.57,2.64]
[1733477416070,9.31626916,235.7,235.57,2.64]
[1733477416868,11.43566916,235.7,235.57,2.64]
[1733477417478,2.1195,235.68,235.59,2.1202]
[1733477417679,2.1195,235.68,235.57,2.64]
[1733477417680,9.31626916,235.7,235.57,2.64]
[1733477418079,2.1195,235.68,235.6,2.1201]
[1733477418675,9.31626916,235.73,235.57,2.64]
[1733477419272,11.43526916,235.73,235.57,2.64]
[1733477419571,11.43526916,235.73,235.58,9.31626916]
[1733477419572,9.31626916,235.73,235.58,9.31626916]
[1733477419873,9.31626916,235.73,235.67,2.1195]
[1733477420078,9.31626916,235.73,235.68,2.64]
[1733477420574,9.31626916,235.73,235.58,9.31626916]
[1733477420575,9.31626916,235.7,235.55,2.64]
[1733477421477,9.31626916,235.7,235.59,2.1202]
[1733477421478,2.1194,235.69,235.59,2.1202]
[1733477421779,9.31626916,235.7,235.55,2.64]
[1733477422183,2.1194,235.69,235.55,2.64]
[1733477422578,9.31626916,235.7,235.65,2.1197]
[1733477422776,9.31626916,235.73,235.65,2.64]
[1733477425172,9.31626916,235.73,235.6,4.33059313]
[1733477425173,9.31626916,235.73,235.57,9.31626916]
[1733477425375,9.31626916,235.73,235.58,2.64]
[1733477425579,9.31626916,235.69,235.58,2.64]
[1733477426185,2.1196,235.67,235.59,2.1202]
[1733477426384,2.1196,235.67,235.58,2.64]
[1733477426877,9.31626916,235.69,235.6,2.1202]
[1733477427186,2.1196,235.66,235.6,2.1202]
[1733477427777,9.31626916,235.65,235.53,51.2897]
[1733477428087,9.31626916,235.65,235.54,2.64]
[1733477428683,2.1199,235.63,235.57,2.1204]
[1733477428981,9.31626916,235.65,235.55,2.64]
[1733477429286,2.1201,235.62,235.56,2.1205]
[1733477429491,9.31626916,235.65,235.55,2.64]
[1733477429786,2.1201,235.61,235.56,2.64]
[1733477430182,2.1202,235.6,235.56,2.64]
[1733477431986,9.31626916,235.62,235.56,4.7605]
[1733477432285,9.31626916,235.62,235.56,2.64]
[1733477432486,9.31626916,235.62,235.58,2.1203]
[1733477432988,9.31626916,235.62,235.56,2.64]
[1733477433177,9.31626916,235.62,235.58,2.1203]
[1733477433782,11.43626916,235.62,235.58,2.1203]
[1733477433984,9.31626916,235.62,235.56,4.7605]
[1733477434183,9.31626916,235.62,235.56,2.64]
[1733477434986,11.43636916,235.62,235.56,2.64]
[1733477435888,9.31626916,235.62,235.58,2.1203]
[1733477436088,9.31626916,235.62,235.56,2.64]
[1733477436687,9.31626916,235.65,235.56,2.64]
[1733477437492,9.31626916,235.65,235.58,2.1203]
[1733477437694,9.31626916,235.65,235.56,2.64]
[1733477438091,2.1199,235.64,235.59,2.1202]
[1733477438292,9.31626916,235.62,235.56,2.64]
[1733477438492,9.31626916,235.62,235.54,2.64]
[1733477438792,2.1201,235.61,235.55,2.1205]
[1733477438993,2.1201,235.61,235.54,2.64]
[1733477440094,2.1201,235.61,235.56,2.1205]
[1733477440894,2.1202,235.6,235.55,2.1205]
[1733477441392,9.31626916,235.62,235.54,2.64]
[1733477442796,2.1201,235.61,235.56,2.1205]
[1733477443893,9.31626916,235.59,235.54,2.64]
[1733477444095,18.63253832,235.56,235.47,2.1213]
[1733477444298,9.31626916,235.48,235.47,2.1213]
[1733477445298,9.31626916,235.48,235.46,0.96038]
[1733477445998,9.31626916,235.51,235.48,2.1212]
[1733477446998,9.31626916,235.51,235.49,2.1212]
[1733477447391,9.31626916,235.51,235.47,2.56]
[1733477447597,9.31626916,235.54,235.47,2.56]
[1733477448095,9.31626916,235.68,235.47,2.56]
[1733477448096,9.31626916,235.57,235.47,2.56]
[1733477448295,9.31626916,235.57,235.48,2.56]
[1733477448697,9.31626916,235.57,235.54,2.1207]
[1733477449303,9.31626916,235.57,235.48,2.56]
[1733477449995,9.31626916,235.57,235.54,2.1207]
[1733477450201,9.31626916,235.57,235.48,2.56]
[1733477451097,11.43676916,235.57,235.51,2.1209]
[1733477451493,11.43676916,235.57,235.48,2.56]
[1733477451800,9.31626916,235.54,235.48,2.56]
[1733477452201,9.31626916,235.54,235.48,2.1213]
[1733477452202,2.1208,235.53,235.48,2.1213]
[1733477453297,2.56,235.58,235.46,0.96038]
[1733477453298,9.31626916,235.51,235.46,0.96038]
[1733477455002,2.1211,235.5,235.46,0.96038]
[1733477455201,9.31626916,235.51,235.46,0.96038]
[1733477455503,11.43726916,235.51,235.47,2.1213]
[1733477455695,9.31626916,235.51,235.46,0.96038]
[1733477456097,2.1212,235.49,235.46,0.96038]
[1733477458102,2.56,235.58,235.46,0.96038]
[1733477458303,9.31626916,235.51,235.46,0.96038]
[1733477458507,11.43736916,235.51,235.46,3.08178]
[1733477458707,9.31626916,235.51,235.46,3.08178]
[1733477459108,2.1212,235.5,235.46,3.08178]
[1733477459804,9.31626916,235.51,235.46,0.96038]
[1733477460004,9.31626916,235.54,235.46,0.96038]
[1733477460409,2.1208,235.53,235.48,2.1212]
[1733477460604,2.1208,235.53,235.46,0.96038]
[1733477460804,9.31626916,235.57,235.46,0.96038]
[1733477461010,9.31626916,235.6,235.46,0.96038]
[1733477461401,9.31626916,235.6,235.54,2.1207]
[1733477461601,9.31626916,235.57,235.54,2.56]
[1733477461809,9.31626916,235.6,235.54,2.56]
[1733477462007,9.31626916,235.6,235.57,2.1204]
[1733477462611,9.31626916,235.6,235.54,2.56]
[1733477462912,2.1199,235.63,235.62,2.12]
[1733477462913,9.31626916,235.63,235.62,2.12]
[1733477463111,9.31626916,235.66,235.62,2.56]
[1733477463308,2.56,235.8,235.62,2.56]
[1733477463510,9.31626916,235.74,235.62,2.56]
[1733477463814,9.31626916,235.71,235.63,2.3972]
[1733477464016,9.31626916,235.71,235.64,2.56]
[1733477464212,9.31626916,235.71,235.64,4.6797]
[1733477464412,9.31626916,235.65,235.62,2.56]
[1733477464815,9.31626916,235.68,235.62,2.56]
[1733477465208,11.87626916,235.8,235.62,2.56]
[1733477465209,9.31626916,235.65,235.62,2.56]
[1733477465812,2.56,235.78,235.62,2.56]
[1733477466012,9.31626916,235.68,235.62,2.56]
[1733477466414,9.31626916,235.65,235.62,2.56]
[1733477466912,9.31626916,235.68,235.62,2.56]
[1733477467112,9.31626916,235.68,235.66,2.1196]
[1733477467306,9.31626916,235.68,235.55,9.1230232]
[1733477467510,9.31626916,235.68,235.56,2.56]
[1733477468412,9.31626916,235.68,235.65,2.1197]
[1733477468717,9.31626916,235.71,235.66,2.56]
[1733477469217,9.31626916,235.72,235.66,2.56]
[1733477469515,12.71,235.89,235.66,2.56]
[1733477469709,9.31626916,235.75,235.66,2.56]
[1733477469914,9.31626916,235.75,235.67,2.3697]
[1733477470118,9.31626916,235.75,235.71,2.1192]
[1733477470317,9.31626916,235.75,235.72,2.56]
[1733477470505,11.43516916,235.75,235.68,2.1194]
[1733477470707,9.31626916,235.69,235.65,2.56]
[1733477471213,9.31626916,235.8,235.65,2.56]
[1733477471214,9.31626916,235.66,235.65,2.56]
[1733477471916,9.31626916,235.69,235.65,2.56]
[1733477472107,9.31626916,235.8,235.65,2.56]
[1733477472108,9.31626916,235.72,235.65,2.56]
[1733477472314,9.31626916,235.75,235.7,2.1193]
[1733477472618,9.31626916,235.75,235.71,2.58]
[1733477472913,2.4718,235.88,235.72,2.58]
[1733477473117,2.4718,235.88,235.68,9.31626916]
[1733477473118,2.4718,235.88,235.73,2.58]
[1733477473317,2.58,235.98,235.74,5.0846]
[1733477473516,9.31626916,235.89,235.74,18.71138592]
[1733477473818,9.31626916,235.89,235.75,2.3909]
[1733477474217,11.43386916,235.89,235.83,2.1181]
[1733477474414,9.31626916,235.89,235.84,2.56]
[1733477474816,9.31626916,235.86,235.84,2.56]
[1733477475021,9.31626916,235.86,235.75,2.3909]
[1733477475315,11.43436916,235.83,235.76,2.56]
[1733477475823,9.31626916,235.83,235.76,2.56]
[1733477476416,9.31626916,235.86,235.76,2.56]
[1733477476623,9.31626916,235.86,235.77,2.3719]
[1733477477014,9.31626916,235.86,235.83,2.1181]
[1733477477211,9.31626916,235.86,235.84,2.56]
[1733477477820,11.43386916,235.89,235.84,2.56]
[1733477478218,9.31626916,235.86,235.77,2.3719]
[1733477478426,9.31626916,235.83,235.78,2.56]
[1733477478726,9.31626916,235.83,235.79,2.56]
[1733477479023,11.43436916,235.83,235.79,2.56]
[1733477480124,9.31626916,235.83,235.79,2.56]
[1733477481224,9.31626916,235.8,235.75,2.56]
[1733477481522,9.31626916,235.77,235.71,2.56]
[1733477482015,2.56,235.9,235.71,2.56]
[1733477482216,9.31626916,235.82,235.71,2.56]
[1733477482416,2.1182,235.83,235.78,2.1186]
[1733477482614,9.31626916,235.84,235.79,2.56]
[1733477482822,9.31626916,235.84,235.8,2.56]
[1733477483025,9.31626916,235.84,235.8,4.6783]
[1733477483624,9.31626916,235.84,235.8,2.56]
[1733477484322,9.31626916,235.81,235.78,2.56]
[1733477484828,9.31626916,235.81,235.74,2.56]
[1733477485027,9.31626916,235.76,235.74,2.56]
[1733477485323,2.1184,235.81,235.76,2.1186]
[1733477485517,9.31626916,235.82,235.74,2.56]
[1733477485923,11.87626916,235.92,235.74,2.56]
[1733477485924,9.31626916,235.85,235.74,2.56]
[1733477486627,9.31626916,235.85,235.75,2.4627]
[1733477487023,2.1184,235.81,235.76,2.56]
[1733477487326,9.31626916,235.82,235.76,2.56]
[1733477488229,2.1184,235.8,235.76,2.56]
[1733477488528,9.31626916,235.82,235.76,2.56]
[1733477489025,9.31626916,235.85,235.76,2.56]
[1733477489730,11.43426916,235.85,235.79,2.1185]
[1733477489930,9.31626916,235.85,235.76,2.56]
[1733477490130,9.31626916,235.88,235.76,2.56]
[1733477490327,9.31626916,235.91,235.84,2.118]
[1733477490524,9.31626916,235.91,235.85,2.56]
[1733477490724,9.31626916,235.91,235.75,9.31626916]
[1733477490725,9.31626916,235.91,235.86,2.56]
[1733477490929,9.31626916,235.91,235.87,2.56]
[1733477491525,9.31626916,235.88,235.72,9.31626916]
[1733477491725,9.31626916,235.84,235.73,2.56]
[1733477491924,11.43456916,235.81,235.74,2.56]
[1733477492131,2.1183,235.81,235.76,2.1187]
[1733477492631,17.04006426,235.83,235.77,2.1186]
[1733477492827,14.92186426,235.83,235.77,2.1186]
[1733477493331,14.92186426,235.83,235.74,2.56]
[1733477493928,2.1184,235.8,235.74,4.6789]
[1733477494222,14.92186426,235.83,235.74,4.6789]
[1733477494427,2.1183,235.81,235.75,2.1187]
[1733477494630,14.92186426,235.83,235.74,2.56]
[1733477495030,2.1184,235.8,235.75,2.1188]
[1733477495731,14.92186426,235.79,235.69,7.69404]
[1733477495929,14.92186426,235.79,235.69,0.41494]
[1733477496132,2.119,235.74,235.69,2.97494]
[1733477496326,14.92186426,235.79,235.69,2.97494]
[1733477496533,14.92186426,235.84,235.69,2.97494]
[1733477497433,2.1186,235.78,235.73,2.119]
[1733477497730,14.92186426,235.8,235.69,2.97494]
[1733477497927,14.92186426,235.8,235.69,0.41494]
[1733477498125,14.92186426,235.8,235.7,2.56]
[1733477498527,14.92186426,235.76,235.69,0.41494]
[1733477498734,2.56,235.82,235.69,0.41494]
[1733477498735,14.92186426,235.72,235.69,0.41494]
[1733477500131,2.1193,235.7,235.69,0.41494]
[1733477500333,14.92186426,235.72,235.6,2.56]
[1733477500532,2.56,235.75,235.6,2.56]
[1733477500533,14.92186426,235.65,235.6,2.56]
[1733477501232,14.92186426,235.61,235.53,2.1208]
[1733477501436,14.92186426,235.61,235.5,2.56]
[1733477501837,17.04206426,235.61,235.54,2.1207]
[1733477502231,14.92186426,235.61,235.5,2.56]
[1733477503036,2.56,235.67,235.5,2.56]
[1733477503437,14.92186426,235.68,235.5,2.56]
[1733477503637,14.92186426,235.68,235.51,2.4445]
[1733477503835,14.92186426,235.68,235.51,17.36636426]
[1733477504036,14.92186426,235.72,235.51,17.36636426]
[1733477504238,14.92186426,235.72,235.55,14.92186426]
[1733477504439,14.92186426,235.72,235.56,7.2761]
[1733477504742,17.04096426,235.72,235.65,2.1197]
[1733477504936,17.04096426,235.72,235.66,2.54]
[1733477505537,17.04096426,235.72,235.67,2.1195]
[1733477505538,14.92186426,235.72,235.67,2.1195]
[1733477505734,14.92186426,235.76,235.66,2.54]
[1733477506240,14.92186426,235.76,235.68,2.1195]
[1733477506436,14.92186426,235.76,235.66,2.54]
[1733477507639,14.92186426,235.76,235.66,4.6596]
[1733477508338,14.92186426,235.76,235.62,2.485]
[1733477508339,2.1192,235.71,235.67,2.54]
[1733477508544,2.1192,235.71,235.68,2.54]
[1733477509840,14.92186426,235.76,235.68,2.54]
[1733477510041,2.1191,235.72,235.68,2.54]
[1733477513746,2.1189,235.74,235.68,2.54]
[1733477513940,2.4271,235.8,235.68,2.54]
[1733477514249,9.33158412,235.75,235.68,2.54]
[1733477515347,2.119,235.74,235.69,2.1193]
[1733477517048,9.33158412,235.78,235.75,2.1188]
[1733477517250,9.33158412,235.78,235.75,2.54]
[1733477517750,9.33158412,235.78,235.75,4.6588]
[1733477518244,11.45018412,235.78,235.75,2.54]
[1733477518849,2.1187,235.76,235.75,2.54]
[1733477519344,2.1191,235.73,235.71,2.54]
[1733477519548,2.1191,235.73,235.7,2.54]
[1733477520250,2.119,235.73,235.7,2.54]
[1733477521246,9.33158412,235.71,235.62,2.485]
[1733477521446,9.33158412,235.68,235.63,2.54]
[1733477521646,9.33158412,235.68,235.64,2.54]
[1733477521842,9.33158412,235.71,235.64,2.54]
[1733477522848,2.1195,235.68,235.64,2.54]
[1733477523055,9.33158412,235.71,235.64,2.54]
[1733477523549,2.1194,235.69,235.64,4.6597]
[1733477523750,9.33158412,235.65,235.59,0.25965]
[1733477524148,2.54,235.74,235.59,2.79965]
[1733477524149,9.33158412,235.62,235.59,2.79965]
[1733477524445,9.33158412,235.62,235.59,0.25965]
[1733477524646,2.1202,235.6,235.59,0.25965]
[1733477525252,9.33158412,235.62,235.47,2.2877]
[1733477525453,9.33158412,235.54,235.48,2.54]
[1733477525755,2.54,235.62,235.38,4.9571]
[1733477525756,9.33158412,235.51,235.38,4.9571]
[1733477526056,2.1212,235.49,235.39,2.54]
[1733477526252,2.1212,235.49,235.44,2.1216]
[1733477526453,2.1213,235.48,235.44,2.54]
[1733477527253,14.96261761,235.51,235.44,2.54]
[1733477527459,2.1211,235.5,235.44,2.54]
[1733477527653,14.96261761,235.51,235.44,2.54]
[1733477527957,2.1212,235.49,235.44,2.54]
[1733477528453,14.96261761,235.55,235.44,2.54]
[1733477529558,2.1212,235.49,235.44,2.54]
[1733477530351,14.96261761,235.55,235.44,2.54]
[1733477531263,2.1211,235.5,235.44,2.54]
[1733477531453,14.96261761,235.55,235.44,2.54]
[1733477531959,2.1211,235.5,235.44,4.6616]
[1733477532159,14.96261761,235.55,235.44,2.54]
[1733477532356,14.96261761,235.53,235.44,2.54]
[1733477532551,2.121,235.51,235.44,2.54]
[1733477533055,14.96261761,235.57,235.5,2.121]
[1733477533249,14.96261761,235.61,235.51,2.42]
[1733477533453,14.96261761,235.61,235.52,2.42]
[1733477533761,14.96261761,235.61,235.53,2.42]
[1733477533966,14.96261761,235.61,235.54,2.42]
[1733477534264,14.96261761,235.61,235.55,2.42]
[1733477534461,14.96261761,235.61,235.56,2.42]
[1733477534662,14.96261761,235.57,235.52,2.42]
[1733477535858,2.1207,235.55,235.52,2.42]
[1733477536257,2.1203,235.59,235.55,2.1206]
[1733477536459,2.1203,235.59,235.52,2.42]
[1733477536763,14.96261761,235.61,235.52,2.42]
[1733477537256,14.96261761,235.57,235.52,2.42]
[1733477537762,2.1206,235.55,235.5,2.1211]
[1733477537959,2.1206,235.55,235.51,2.42]
[1733477539362,14.96261761,235.57,235.51,2.42]
[1733477539563,14.96261761,235.61,235.51,2.42]
[1733477539968,2.1204,235.58,235.53,2.1208]
[1733477540262,14.96261761,235.61,235.51,2.42]
[1733477540761,2.1206,235.56,235.51,2.42]
[1733477540956,14.96261761,235.57,235.45,2.5239]
[1733477541163,14.96261761,235.53,235.45,4.6454]
[1733477541358,14.96261761,235.53,235.46,2.42]
[1733477542164,2.1211,235.5,235.46,4.5414]
[1733477542963,14.96261761,235.53,235.46,2.42]
[1733477543165,14.96261761,235.57,235.46,2.42]
[1733477543864,14.96261761,235.57,235.52,2.1208]
[1733477544164,2.3334,235.66,235.53,2.42]
[1733477544362,14.96261761,235.63,235.53,2.42]
[1733477545266,2.4652,235.77,235.53,2.42]
[1733477545463,14.96261761,235.71,235.53,2.42]
[1733477545663,14.96261761,235.71,235.64,2.1198]
[1733477545871,14.96261761,235.71,235.65,2.42]
[1733477546172,9.33482619,235.73,235.66,2.42]
[1733477546968,9.33482619,235.76,235.67,4.19550286]
[1733477547468,9.33482619,235.73,235.68,2.42]
[1733477547872,9.33482619,235.7,235.64,2.42]
[1733477548066,11.75482619,235.8,235.64,2.42]
[1733477548067,14.9411414,235.68,235.64,2.42]
[1733477548267,2.1197,235.66,235.62,2.42]
[1733477548772,14.9411414,235.68,235.62,2.42]
[1733477549068,14.9411414,235.68,235.53,2.3648]
[1733477549069,14.9411414,235.64,235.54,4.5628]
[1733477549262,14.9411414,235.64,235.55,2.42]
[1733477549461,2.1201,235.61,235.55,2.42]
[1733477549663,14.9411414,235.64,235.55,2.42]
[1733477549969,14.9411414,235.68,235.55,2.42]
[1733477550784,2.1199,235.63,235.55,2.42]
[1733477551072,14.9411414,235.68,235.54,2.4421]
[1733477551274,2.1203,235.59,235.55,2.42]
[1733477551473,14.9411414,235.62,235.55,2.42]
[1733477551674,2.1201,235.61,235.55,4.5406]
[1733477552371,14.9411414,235.62,235.55,2.42]
[1733477552774,14.9411414,235.62,235.51,46.5291]
[1733477553082,2.1204,235.58,235.52,4.5409]
[1733477553381,14.9411414,235.62,235.52,2.42]
[1733477553774,14.9411414,235.62,235.51,46.5291]